[Event "Titled Tuesday Blitz January 03 Early 2023"]
[White "Kopczynski, Michal"]
[Black "Pein, Malcolm"]
[WhiteFideId "1124200"]
[BlackFideId "400289"]
[WhiteElo "2225"]
[BlackElo "2305"]
[Result "1-0"]
[Round "05"]
[TimeControl "180+2"]
[Date "2023.01.03"]
[WhiteClock "0:00:32"]
[BlackClock "0:00:08"]

1. e4 {[%clk 0:03:00]}  e5 {[%clk 0:02:55]} 2. Nf3 {[%clk 0:03:00]}  Nc6 {[%clk 0:02:55]} 3. Bb5 {[%clk 0:03:00]}  a6 {[%clk 0:02:54]} 4. Ba4 {[%clk 0:03:00]}  Nf6 {[%clk 0:02:54]} 5. O-O {[%clk 0:03:00]}  Be7 {[%clk 0:02:54]} 6. Re1 {[%clk 0:03:00]}  b5 {[%clk 0:02:53]} 7. Bb3 {[%clk 0:03:00]}  O-O {[%clk 0:02:54]} 8. a4 {[%clk 0:03:00]}  b4 {[%clk 0:02:53]} 9. h3 {[%clk 0:03:00]}  d5 {[%clk 0:02:48]} 10. exd5 {[%clk 0:02:59]}  e4 {[%clk 0:02:45]} 11. Nh2 {[%clk 0:02:56]}  Nd4 {[%clk 0:02:43]} 12. d3 {[%clk 0:02:54]}  Nxb3 {[%clk 0:02:41]} 13. cxb3 {[%clk 0:02:54]}  exd3 {[%clk 0:02:30]} 14. Qxd3 {[%clk 0:02:55]}  Bb7 {[%clk 0:02:27]} 15. Bg5 {[%clk 0:02:52]}  Re8 {[%clk 0:02:19]} 16. Nd2 {[%clk 0:02:48]}  h6 {[%clk 0:02:09]} 17. Bxf6 {[%clk 0:02:44]}  Bxf6 {[%clk 0:02:08]} 18. Rxe8+ {[%clk 0:02:45]}  Qxe8 {[%clk 0:02:08]} 19. Ng4 {[%clk 0:02:36]}  Bxb2 {[%clk 0:02:07]} 20. Rb1 {[%clk 0:02:25]}  Bc3 {[%clk 0:01:36]} 21. Ne4 {[%clk 0:02:24]}  Rd8 {[%clk 0:01:25]} 22. Nxc3 {[%clk 0:02:19]}  bxc3 {[%clk 0:01:25]} 23. Qxc3 {[%clk 0:02:19]}  Qe4 {[%clk 0:01:20]} 24. Re1 {[%clk 0:02:11]}  Qxd5 {[%clk 0:01:21]} 25. Ne3 {[%clk 0:01:52]}  Qd2 {[%clk 0:01:13]} 26. Rc1 {[%clk 0:01:46]}  Qxc3 {[%clk 0:01:03]} 27. Rxc3 {[%clk 0:01:47]}  Rd7 {[%clk 0:01:03]} 28. Kf1 {[%clk 0:01:47]}  Kf8 {[%clk 0:01:03]} 29. Ke2 {[%clk 0:01:47]}  Ke7 {[%clk 0:00:58]} 30. f3 {[%clk 0:01:47]}  Ke6 {[%clk 0:00:53]} 31. Nc4 {[%clk 0:01:36]}  f5 {[%clk 0:00:48]} 32. Re3+ {[%clk 0:01:35]}  Kf6 {[%clk 0:00:48]} 33. Rc3 {[%clk 0:01:24]}  f4 {[%clk 0:00:45]} 34. Na5 {[%clk 0:01:04]}  Bd5 {[%clk 0:00:44]} 35. Nc6 {[%clk 0:01:05]}  g5 {[%clk 0:00:36]} 36. Nb8 {[%clk 0:00:58]}  Re7+ {[%clk 0:00:36]} 37. Kd2 {[%clk 0:00:50]}  a5 {[%clk 0:00:32]} 38. Na6 {[%clk 0:00:46]}  c6 {[%clk 0:00:24]} 39. Nc5 {[%clk 0:00:46]}  Ke5 {[%clk 0:00:20]} 40. Rd3 {[%clk 0:00:44]}  Ra7 {[%clk 0:00:18]} 41. Kc3 {[%clk 0:00:44]}  Ra8 {[%clk 0:00:19]} 42. Rd2 {[%clk 0:00:42]}  Kd6 {[%clk 0:00:19]} 43. Ne4+ {[%clk 0:00:42]}  Ke5 {[%clk 0:00:19]} 44. Nf2 {[%clk 0:00:41]}  Rb8 {[%clk 0:00:19]} 45. Ng4+ {[%clk 0:00:37]}  Ke6 {[%clk 0:00:18]} 46. Re2+ {[%clk 0:00:36]}  Kf5 {[%clk 0:00:16]} 47. Rb2 {[%clk 0:00:32]}  h5 {[%clk 0:00:15]} 48. Nf2 {[%clk 0:00:33]}  Rb4 {[%clk 0:00:13]} 49. Nd3 {[%clk 0:00:33]}  Rb8 {[%clk 0:00:10]} 50. Nc5 {[%clk 0:00:33]}  Kf6 {[%clk 0:00:08]} 51. Nd7+ {[%clk 0:00:32]} 1-0


[Site "https://www.chess.com"]

[Event "Titled Tuesday Blitz January 03 Early 2023"]
[White "Lakshmi C"]
[Black "Le Ruyet, Leopold"]
[WhiteFideId "25035347"]
[BlackFideId "645923"]
[WhiteElo "1928"]
[BlackElo "2245"]
[Result "0-1"]
[Round "05"]
[TimeControl "180+2"]
[Date "2023.01.03"]
[WhiteClock "0:00:01"]
[BlackClock "0:00:04"]

1. e4 {[%clk 0:02:48]}  d6 {[%clk 0:02:59]} 2. d4 {[%clk 0:02:47]}  Nf6 {[%clk 0:02:59]} 3. Nc3 {[%clk 0:02:47]}  e5 {[%clk 0:03:00]} 4. Nf3 {[%clk 0:02:43]}  Nbd7 {[%clk 0:03:00]} 5. Be2 {[%clk 0:02:41]}  Be7 {[%clk 0:03:00]} 6. O-O {[%clk 0:02:39]}  O-O {[%clk 0:03:00]} 7. Bg5 {[%clk 0:02:29]}  c6 {[%clk 0:02:59]} 8. h3 {[%clk 0:02:17]}  b5 {[%clk 0:02:54]} 9. a3 {[%clk 0:02:13]}  a5 {[%clk 0:02:43]} 10. Bd3 {[%clk 0:02:05]}  h6 {[%clk 0:02:34]} 11. Bh4 {[%clk 0:02:02]}  Bb7 {[%clk 0:02:15]} 12. Bg3 {[%clk 0:01:43]}  b4 {[%clk 0:02:04]} 13. axb4 {[%clk 0:01:33]}  axb4 {[%clk 0:02:05]} 14. Rxa8 {[%clk 0:01:29]}  Qxa8 {[%clk 0:02:06]} 15. Ne2 {[%clk 0:01:28]}  Qa5 {[%clk 0:01:30]} 16. Nh4 {[%clk 0:01:14]}  g6 {[%clk 0:01:21]} 17. Qd2 {[%clk 0:01:02]}  Kg7 {[%clk 0:01:15]} 18. f4 {[%clk 0:00:45]}  Nh5 {[%clk 0:01:12]} 19. Bf2 {[%clk 0:00:37]}  exf4 {[%clk 0:01:02]} 20. Nxf4 {[%clk 0:00:36]}  Ndf6 {[%clk 0:00:23]} 21. Be3 {[%clk 0:00:21]}  Ng3 {[%clk 0:00:21]} 22. e5 {[%clk 0:00:10]}  dxe5 {[%clk 0:00:19]} 23. dxe5 {[%clk 0:00:09]}  Qxe5 {[%clk 0:00:18]} 24. Rf3 {[%clk 0:00:08]}  Nge4 {[%clk 0:00:16]} 25. Qe1 {[%clk 0:00:06]}  g5 {[%clk 0:00:11]} 26. Nf5+ {[%clk 0:00:05]}  Kg8 {[%clk 0:00:04]} 27. Bd4 {[%clk 0:00:04]}  Qxf5 {[%clk 0:00:04]} 28. Nh5 {[%clk 0:00:01]}  Qg6 {[%clk 0:00:04]} 0-1


[Site "https://www.chess.com"]

[Event "Titled Tuesday Blitz January 03 Early 2023"]
[White "Lorenzo De La Riva, Lazaro"]
[Black "Kuchava, Ana"]
[WhiteFideId "2268809"]
[BlackFideId "13605348"]
[WhiteElo "2404"]
[BlackElo "2101"]
[Result "1-0"]
[Round "05"]
[TimeControl "180+2"]
[Date "2023.01.03"]
[WhiteClock "0:00:29"]
[BlackClock "0:00:02"]

1. b3 {[%clk 0:02:55]}  d5 {[%clk 0:02:59]} 2. Bb2 {[%clk 0:02:54]}  c5 {[%clk 0:02:59]} 3. e3 {[%clk 0:02:53]}  Nc6 {[%clk 0:02:59]} 4. Nf3 {[%clk 0:02:52]}  Nf6 {[%clk 0:02:57]} 5. Bb5 {[%clk 0:02:52]}  Bg4 {[%clk 0:02:54]} 6. h3 {[%clk 0:02:50]}  Bxf3 {[%clk 0:02:52]} 7. Qxf3 {[%clk 0:02:50]}  e6 {[%clk 0:02:52]} 8. Bxc6+ {[%clk 0:02:49]}  bxc6 {[%clk 0:02:52]} 9. O-O {[%clk 0:02:48]}  Be7 {[%clk 0:02:51]} 10. d3 {[%clk 0:02:46]}  O-O {[%clk 0:02:50]} 11. c4 {[%clk 0:02:45]}  a5 {[%clk 0:02:46]} 12. Nc3 {[%clk 0:02:44]}  d4 {[%clk 0:02:42]} 13. Na4 {[%clk 0:02:42]}  Qd6 {[%clk 0:02:19]} 14. Ba3 {[%clk 0:02:38]}  Nd7 {[%clk 0:02:16]} 15. e4 {[%clk 0:02:28]}  e5 {[%clk 0:01:58]} 16. Qg3 {[%clk 0:02:24]}  Qg6 {[%clk 0:01:44]} 17. Qxg6 {[%clk 0:02:23]}  hxg6 {[%clk 0:01:45]} 18. g3 {[%clk 0:02:21]}  f5 {[%clk 0:01:42]} 19. Rae1 {[%clk 0:02:16]}  f4 {[%clk 0:01:41]} 20. g4 {[%clk 0:01:59]}  g5 {[%clk 0:01:40]} 21. f3 {[%clk 0:01:58]}  Kf7 {[%clk 0:01:39]} 22. Kg2 {[%clk 0:01:56]}  Rh8 {[%clk 0:01:38]} 23. Rh1 {[%clk 0:01:56]}  Rh4 {[%clk 0:01:34]} 24. Bc1 {[%clk 0:01:53]}  Ra6 {[%clk 0:01:29]} 25. Bd2 {[%clk 0:01:53]}  Rh8 {[%clk 0:01:19]} 26. Rb1 {[%clk 0:01:44]}  Nb6 {[%clk 0:01:10]} 27. Be1 {[%clk 0:01:40]}  Rb8 {[%clk 0:01:04]} 28. Bd2 {[%clk 0:01:39]}  Nxa4 {[%clk 0:00:44]} 29. bxa4 {[%clk 0:01:39]}  Rb4 {[%clk 0:00:37]} 30. Bxb4 {[%clk 0:01:18]}  cxb4 {[%clk 0:00:38]} 31. c5 {[%clk 0:01:14]}  Bxc5 {[%clk 0:00:31]} 32. Rhc1 {[%clk 0:01:13]}  Be7 {[%clk 0:00:31]} 33. Rc4 {[%clk 0:01:10]}  c5 {[%clk 0:00:31]} 34. Rc2 {[%clk 0:01:01]}  Ke6 {[%clk 0:00:30]} 35. Rb3 {[%clk 0:00:56]}  Ra8 {[%clk 0:00:26]} 36. a3 {[%clk 0:00:53]}  Kd6 {[%clk 0:00:22]} 37. Ra2 {[%clk 0:00:51]}  Kc6 {[%clk 0:00:16]} 38. Rb1 {[%clk 0:00:45]}  g6 {[%clk 0:00:14]} 39. axb4 {[%clk 0:00:37]}  axb4 {[%clk 0:00:14]} 40. a5 {[%clk 0:00:37]}  Ra6 {[%clk 0:00:14]} 41. Kf2 {[%clk 0:00:35]}  Bd8 {[%clk 0:00:15]} 42. Ke2 {[%clk 0:00:34]}  Kb5 {[%clk 0:00:15]} 43. Kd2 {[%clk 0:00:33]}  Rxa5 {[%clk 0:00:11]} 44. Rxa5+ {[%clk 0:00:32]}  Bxa5 {[%clk 0:00:12]} 45. Kc2 {[%clk 0:00:32]}  Bb6 {[%clk 0:00:10]} 46. Kb3 {[%clk 0:00:32]}  Ba5 {[%clk 0:00:10]} 47. Ra1 {[%clk 0:00:31]}  Kb6 {[%clk 0:00:03]} 48. Kc4 {[%clk 0:00:32]}  Ka6 {[%clk 0:00:02]} 49. Kxc5 {[%clk 0:00:29]} 1-0


[Site "https://www.chess.com"]

[Event "Titled Tuesday Blitz January 03 Early 2023"]
[White "Arpita, Mukherjee"]
[Black "Clawitter, Craig"]
[WhiteFideId "5056403"]
[BlackFideId "2023105"]
[WhiteElo "2203"]
[BlackElo "2050"]
[Result "1-0"]
[Round "05"]
[TimeControl "180+2"]
[Date "2023.01.03"]
[WhiteClock "0:01:00"]
[BlackClock "0:00:03"]

1. e4 {[%clk 0:02:41]}  e6 {[%clk 0:02:27]} 2. d4 {[%clk 0:02:40]}  d5 {[%clk 0:02:26]} 3. Nd2 {[%clk 0:02:39]}  Be7 {[%clk 0:02:26]} 4. Ngf3 {[%clk 0:02:37]}  Nf6 {[%clk 0:02:26]} 5. e5 {[%clk 0:02:37]}  Nfd7 {[%clk 0:02:26]} 6. Bd3 {[%clk 0:02:37]}  c5 {[%clk 0:02:26]} 7. c3 {[%clk 0:02:38]}  Nc6 {[%clk 0:02:26]} 8. O-O {[%clk 0:02:35]}  a5 {[%clk 0:02:27]} 9. a4 {[%clk 0:02:23]}  cxd4 {[%clk 0:02:24]} 10. cxd4 {[%clk 0:02:23]}  Nb4 {[%clk 0:02:25]} 11. Bb1 {[%clk 0:02:22]}  b6 {[%clk 0:02:25]} 12. Nb3 {[%clk 0:02:22]}  Ba6 {[%clk 0:02:24]} 13. Re1 {[%clk 0:02:22]}  b5 {[%clk 0:02:10]} 14. axb5 {[%clk 0:02:21]}  Bxb5 {[%clk 0:02:11]} 15. Bd2 {[%clk 0:02:21]}  a4 {[%clk 0:02:01]} 16. Bxb4 {[%clk 0:02:17]}  Bxb4 {[%clk 0:01:52]} 17. Nbd2 {[%clk 0:02:17]}  Nb6 {[%clk 0:01:36]} 18. h4 {[%clk 0:02:09]}  Nc4 {[%clk 0:01:27]} 19. Nxc4 {[%clk 0:02:08]}  Bxc4 {[%clk 0:01:17]} 20. Re3 {[%clk 0:02:04]}  Qd7 {[%clk 0:01:01]} 21. Nh2 {[%clk 0:02:00]}  Qb5 {[%clk 0:00:50]} 22. Qg4 {[%clk 0:01:59]}  Bf8 {[%clk 0:00:48]} 23. Bc2 {[%clk 0:01:43]}  Qxb2 {[%clk 0:00:40]} 24. Rxa4 {[%clk 0:01:41]}  Rc8 {[%clk 0:00:19]} 25. Qd1 {[%clk 0:01:33]}  Bb5 {[%clk 0:00:15]} 26. Rb3 {[%clk 0:01:23]}  Qxc2 {[%clk 0:00:12]} 27. Qxc2 {[%clk 0:01:22]}  Rxc2 {[%clk 0:00:12]} 28. Rxb5 {[%clk 0:01:21]}  Kd7 {[%clk 0:00:09]} 29. Ra8 {[%clk 0:01:18]}  g6 {[%clk 0:00:09]} 30. Rb7+ {[%clk 0:01:17]}  Rc7 {[%clk 0:00:08]} 31. Rxc7+ {[%clk 0:01:15]}  Kxc7 {[%clk 0:00:08]} 32. Nf3 {[%clk 0:01:16]}  Bg7 {[%clk 0:00:08]} 33. Rxh8 {[%clk 0:01:17]}  Bxh8 {[%clk 0:00:08]} 34. Ng5 {[%clk 0:01:17]}  f6 {[%clk 0:00:07]} 35. Nxe6+ {[%clk 0:01:15]}  Kd7 {[%clk 0:00:07]} 36. Nf8+ {[%clk 0:01:15]}  Ke8 {[%clk 0:00:06]} 37. Nxh7 {[%clk 0:01:11]}  fxe5 {[%clk 0:00:06]} 38. dxe5 {[%clk 0:01:11]}  Bxe5 {[%clk 0:00:06]} 39. Ng5 {[%clk 0:01:12]}  Ke7 {[%clk 0:00:06]} 40. Kf1 {[%clk 0:01:13]}  Kf6 {[%clk 0:00:05]} 41. Ke2 {[%clk 0:01:13]}  Kf5 {[%clk 0:00:06]} 42. Nf3 {[%clk 0:01:08]}  Ke4 {[%clk 0:00:05]} 43. Nxe5 {[%clk 0:01:07]}  Kxe5 {[%clk 0:00:06]} 44. g4 {[%clk 0:01:05]}  Kf4 {[%clk 0:00:06]} 45. f3 {[%clk 0:01:01]}  d4 {[%clk 0:00:06]} 46. Kd3 {[%clk 0:01:01]}  Kxf3 {[%clk 0:00:06]} 47. h5 {[%clk 0:01:02]}  Kxg4 {[%clk 0:00:03]} 48. hxg6 {[%clk 0:01:00]} 1-0


[Site "https://www.chess.com"]

[Event "Titled Tuesday Blitz January 03 Early 2023"]
[White "Broca Jimenez, Fernando"]
[Black "Andreev, Konstantin"]
[WhiteFideId "5104742"]
[BlackFideId "24239305"]
[WhiteElo "2075"]
[BlackElo "2195"]
[Result "0-1"]
[Round "05"]
[TimeControl "180+2"]
[Date "2023.01.03"]
[WhiteClock "0:00:05"]
[BlackClock "0:01:10"]

1. e4 {[%clk 0:03:00]}  g6 {[%clk 0:02:59]} 2. d4 {[%clk 0:02:58]}  Bg7 {[%clk 0:03:00]} 3. c4 {[%clk 0:02:58]}  b6 {[%clk 0:03:01]} 4. Nc3 {[%clk 0:02:58]}  Bb7 {[%clk 0:03:02]} 5. Nf3 {[%clk 0:02:57]}  e6 {[%clk 0:03:02]} 6. Bd3 {[%clk 0:02:48]}  Ne7 {[%clk 0:03:02]} 7. O-O {[%clk 0:02:46]}  d6 {[%clk 0:03:02]} 8. Bg5 {[%clk 0:02:45]}  Nd7 {[%clk 0:03:02]} 9. Qd2 {[%clk 0:02:44]}  h6 {[%clk 0:03:02]} 10. Be3 {[%clk 0:02:43]}  a6 {[%clk 0:03:03]} 11. b4 {[%clk 0:02:42]}  g5 {[%clk 0:03:03]} 12. Rac1 {[%clk 0:02:34]}  Ng6 {[%clk 0:03:02]} 13. Rfd1 {[%clk 0:02:02]}  Qe7 {[%clk 0:02:47]} 14. c5 {[%clk 0:01:53]}  bxc5 {[%clk 0:02:44]} 15. bxc5 {[%clk 0:01:54]}  dxc5 {[%clk 0:02:39]} 16. dxc5 {[%clk 0:01:55]}  Nde5 {[%clk 0:02:26]} 17. Nxe5 {[%clk 0:01:15]}  Nxe5 {[%clk 0:02:27]} 18. Bc2 {[%clk 0:01:15]}  O-O {[%clk 0:02:15]} 19. Bb3 {[%clk 0:01:14]}  Ng4 {[%clk 0:02:08]} 20. Qe2 {[%clk 0:01:05]}  Nxe3 {[%clk 0:02:04]} 21. Qxe3 {[%clk 0:01:06]}  Rad8 {[%clk 0:02:03]} 22. Ne2 {[%clk 0:00:55]}  Bc6 {[%clk 0:02:02]} 23. Nd4 {[%clk 0:00:51]}  Ba8 {[%clk 0:01:45]} 24. e5 {[%clk 0:00:44]}  Bd5 {[%clk 0:01:42]} 25. Bxd5 {[%clk 0:00:29]}  Rxd5 {[%clk 0:01:43]} 26. Nc6 {[%clk 0:00:29]}  Qd7 {[%clk 0:01:37]} 27. Rxd5 {[%clk 0:00:26]}  exd5 {[%clk 0:01:37]} 28. Nd4 {[%clk 0:00:25]}  Re8 {[%clk 0:01:36]} 29. c6 {[%clk 0:00:21]}  Qg4 {[%clk 0:01:32]} 30. f3 {[%clk 0:00:19]}  Qc8 {[%clk 0:01:21]} 31. Qd3 {[%clk 0:00:10]}  Rxe5 {[%clk 0:01:15]} 32. Rb1 {[%clk 0:00:08]}  Qe8 {[%clk 0:01:13]} 33. Qxa6 {[%clk 0:00:06]}  Re1+ {[%clk 0:01:10]} 34. Rxe1 {[%clk 0:00:05]}  Qxe1+ {[%clk 0:01:10]} 0-1


[Site "https://www.chess.com"]

[Event "Titled Tuesday Blitz January 03 Early 2023"]
[White "Estrada Nieto, Julian"]
[Black "Ardila, Oscar Humberto"]
[WhiteFideId "5101018"]
[BlackFideId "4404742"]
[WhiteElo "2215"]
[BlackElo "1982"]
[Result "1-0"]
[Round "05"]
[TimeControl "180+2"]
[Date "2023.01.03"]
[WhiteClock "0:01:10"]
[BlackClock "0:00:58"]

1. e4 {[%clk 0:03:00]}  e5 {[%clk 0:02:56]} 2. Nf3 {[%clk 0:03:01]}  Nf6 {[%clk 0:02:55]} 3. d4 {[%clk 0:03:00]}  Nxe4 {[%clk 0:02:55]} 4. Bd3 {[%clk 0:02:59]}  d5 {[%clk 0:02:54]} 5. Nxe5 {[%clk 0:03:00]}  Nf6 {[%clk 0:02:55]} 6. O-O {[%clk 0:02:56]}  Be7 {[%clk 0:02:55]} 7. Bg5 {[%clk 0:02:52]}  O-O {[%clk 0:02:55]} 8. Re1 {[%clk 0:02:51]}  Nbd7 {[%clk 0:02:55]} 9. Nc3 {[%clk 0:02:45]}  c6 {[%clk 0:02:55]} 10. Qf3 {[%clk 0:02:32]}  Re8 {[%clk 0:02:52]} 11. Nxd7 {[%clk 0:02:13]}  Bxd7 {[%clk 0:02:50]} 12. h3 {[%clk 0:02:10]}  h6 {[%clk 0:02:48]} 13. Bf4 {[%clk 0:02:09]}  Bf8 {[%clk 0:02:46]} 14. Rxe8 {[%clk 0:02:04]}  Bxe8 {[%clk 0:02:46]} 15. Re1 {[%clk 0:02:03]}  Bd7 {[%clk 0:02:46]} 16. Be5 {[%clk 0:02:03]}  Be7 {[%clk 0:02:44]} 17. Nd1 {[%clk 0:02:02]}  Qf8 {[%clk 0:02:31]} 18. Ne3 {[%clk 0:01:59]}  Re8 {[%clk 0:02:30]} 19. Nf5 {[%clk 0:01:59]}  Bxf5 {[%clk 0:02:29]} 20. Qxf5 {[%clk 0:01:59]}  g6 {[%clk 0:02:29]} 21. Qf4 {[%clk 0:01:41]}  Nd7 {[%clk 0:01:36]} 22. Qg4 {[%clk 0:01:22]}  Nxe5 {[%clk 0:01:35]} 23. dxe5 {[%clk 0:01:22]}  Bb4 {[%clk 0:01:08]} 24. c3 {[%clk 0:01:20]}  h5 {[%clk 0:01:04]} 25. Qxb4 {[%clk 0:01:19]}  Qxb4 {[%clk 0:01:03]} 26. cxb4 {[%clk 0:01:19]}  Kf8 {[%clk 0:01:03]} 27. f4 {[%clk 0:01:18]}  Ke7 {[%clk 0:01:02]} 28. Kf2 {[%clk 0:01:18]}  Ke6 {[%clk 0:01:02]} 29. Ke3 {[%clk 0:01:13]}  b6 {[%clk 0:01:01]} 30. Kd4 {[%clk 0:01:12]}  Rc8 {[%clk 0:01:00]} 31. Rc1 {[%clk 0:01:11]}  Rc7 {[%clk 0:00:58]} 32. g4 {[%clk 0:01:10]}  hxg4 {[%clk 0:00:58]} 33. hxg4 {[%clk 0:01:10]}  Rc8 {[%clk 0:00:58]} 34. f5+ {[%clk 0:01:10]}  gxf5 {[%clk 0:00:58]} 35. Bxf5+ {[%clk 0:01:10]} 1-0


[Site "https://www.chess.com"]

[Event "Titled Tuesday Blitz January 03 Early 2023"]
[White "Thomas, Anysia"]
[Black "Kalajzic, Ivan"]
[WhiteFideId "670472"]
[BlackFideId "14506378"]
[WhiteElo "2147"]
[BlackElo "2062"]
[Result "0-1"]
[Round "05"]
[TimeControl "180+2"]
[Date "2023.01.03"]
[WhiteClock "0:00:03"]
[BlackClock "0:00:20"]

1. d4 {[%clk 0:03:00]}  Nc6 {[%clk 0:02:56]} 2. Nf3 {[%clk 0:02:59]}  d6 {[%clk 0:02:56]} 3. c4 {[%clk 0:02:58]}  Bg4 {[%clk 0:02:56]} 4. Nc3 {[%clk 0:02:58]}  e5 {[%clk 0:02:55]} 5. dxe5 {[%clk 0:02:54]}  dxe5 {[%clk 0:02:55]} 6. Qa4 {[%clk 0:02:46]}  Bd7 {[%clk 0:02:48]} 7. Qd1 {[%clk 0:02:28]}  Bb4 {[%clk 0:02:45]} 8. e3 {[%clk 0:02:23]}  Qe7 {[%clk 0:02:43]} 9. Be2 {[%clk 0:02:22]}  O-O-O {[%clk 0:02:43]} 10. O-O {[%clk 0:02:20]}  Bxc3 {[%clk 0:02:37]} 11. bxc3 {[%clk 0:02:18]}  Bf5 {[%clk 0:02:37]} 12. Qa4 {[%clk 0:02:16]}  f6 {[%clk 0:02:30]} 13. Ba3 {[%clk 0:02:16]}  Qe8 {[%clk 0:02:19]} 14. c5 {[%clk 0:01:59]}  Nd4 {[%clk 0:02:13]} 15. Qxa7 {[%clk 0:00:44]}  Nxe2+ {[%clk 0:02:13]} 16. Kh1 {[%clk 0:00:44]}  Qb5 {[%clk 0:01:38]} 17. Qa8+ {[%clk 0:00:34]}  Kd7 {[%clk 0:01:38]} 18. Rad1+ {[%clk 0:00:31]}  Bd3 {[%clk 0:01:37]} 19. c4 {[%clk 0:00:13]}  Rxa8 {[%clk 0:01:32]} 20. Rxd3+ {[%clk 0:00:09]}  Ke6 {[%clk 0:01:13]} 21. cxb5 {[%clk 0:00:10]}  e4 {[%clk 0:01:09]} 22. Nd4+ {[%clk 0:00:09]}  Nxd4 {[%clk 0:01:07]} 23. Rxd4 {[%clk 0:00:09]}  Rxa3 {[%clk 0:01:07]} 24. Rxe4+ {[%clk 0:00:08]}  Kf7 {[%clk 0:01:07]} 25. Rd4 {[%clk 0:00:08]}  Ke6 {[%clk 0:01:00]} 26. Rd8 {[%clk 0:00:05]}  Rxa2 {[%clk 0:00:54]} 27. h3 {[%clk 0:00:05]}  Kf7 {[%clk 0:00:52]} 28. Rfd1 {[%clk 0:00:04]}  Rxf2 {[%clk 0:00:40]} 29. R1d7+ {[%clk 0:00:04]}  Kg6 {[%clk 0:00:40]} 30. Rxc7 {[%clk 0:00:04]}  Rc2 {[%clk 0:00:35]} 31. c6 {[%clk 0:00:04]}  bxc6 {[%clk 0:00:34]} 32. b6 {[%clk 0:00:04]}  Ne7 {[%clk 0:00:22]} 33. Rxh8 {[%clk 0:00:03]}  Nd5 {[%clk 0:00:22]} 34. Rxc6 {[%clk 0:00:02]}  Rxc6 {[%clk 0:00:20]} 35. Rc8 {[%clk 0:00:03]}  Rxc8 {[%clk 0:00:20]} 36. b7 {[%clk 0:00:03]}  Rb8 {[%clk 0:00:20]} 0-1


[Site "https://www.chess.com"]

[Event "Titled Tuesday Blitz January 03 Early 2023"]
[White "Osiecki, Stanislaw"]
[Black "Miszler, Levente"]
[WhiteFideId "1102990"]
[BlackFideId "763276"]
[WhiteElo "2055"]
[BlackElo "2271"]
[Result "1/2-1/2"]
[Round "05"]
[TimeControl "180+2"]
[Date "2023.01.03"]
[WhiteClock "0:00:04"]
[BlackClock "0:00:07"]

1. e4 {[%clk 0:02:58]}  e6 {[%clk 0:03:00]} 2. d4 {[%clk 0:02:54]}  d5 {[%clk 0:02:58]} 3. e5 {[%clk 0:02:55]}  f6 {[%clk 0:02:57]} 4. c3 {[%clk 0:02:56]}  fxe5 {[%clk 0:02:56]} 5. dxe5 {[%clk 0:02:56]}  c5 {[%clk 0:02:55]} 6. Bd3 {[%clk 0:02:56]}  g6 {[%clk 0:02:52]} 7. Qc2 {[%clk 0:02:54]}  Ne7 {[%clk 0:02:49]} 8. Bg5 {[%clk 0:02:53]}  Bg7 {[%clk 0:02:47]} 9. Nf3 {[%clk 0:02:51]}  c4 {[%clk 0:02:41]} 10. Be2 {[%clk 0:02:41]}  Nbc6 {[%clk 0:02:37]} 11. O-O {[%clk 0:02:35]}  O-O {[%clk 0:02:36]} 12. Re1 {[%clk 0:02:30]}  Nxe5 {[%clk 0:02:28]} 13. Nxe5 {[%clk 0:02:29]}  Bxe5 {[%clk 0:02:29]} 14. Bxc4 {[%clk 0:02:27]}  Rf5 {[%clk 0:02:14]} 15. Bxe7 {[%clk 0:02:23]}  Qxe7 {[%clk 0:02:15]} 16. Bd3 {[%clk 0:02:22]}  Rh5 {[%clk 0:02:05]} 17. g3 {[%clk 0:02:11]}  Qf6 {[%clk 0:01:56]} 18. f4 {[%clk 0:02:04]}  Bc7 {[%clk 0:01:51]} 19. Be2 {[%clk 0:01:59]}  Rh6 {[%clk 0:01:42]} 20. Nd2 {[%clk 0:01:58]}  Bd7 {[%clk 0:01:36]} 21. Nf3 {[%clk 0:01:57]}  Re8 {[%clk 0:01:31]} 22. Bf1 {[%clk 0:01:35]}  e5 {[%clk 0:01:25]} 23. Nxe5 {[%clk 0:01:30]}  Bxe5 {[%clk 0:01:24]} 24. Rxe5 {[%clk 0:01:26]}  Rxe5 {[%clk 0:01:24]} 25. fxe5 {[%clk 0:01:25]}  Qxe5 {[%clk 0:01:25]} 26. Qd2 {[%clk 0:01:18]}  Rh5 {[%clk 0:01:22]} 27. Re1 {[%clk 0:01:17]}  Qd6 {[%clk 0:01:19]} 28. Bg2 {[%clk 0:01:10]}  Bc6 {[%clk 0:01:19]} 29. Qe2 {[%clk 0:01:05]}  Rf5 {[%clk 0:01:18]} 30. Qe7 {[%clk 0:00:58]}  Qxe7 {[%clk 0:01:15]} 31. Rxe7 {[%clk 0:00:57]}  Rf7 {[%clk 0:01:16]} 32. Rxf7 {[%clk 0:00:56]}  Kxf7 {[%clk 0:01:17]} 33. Kf2 {[%clk 0:00:56]}  Ke6 {[%clk 0:01:17]} 34. Ke3 {[%clk 0:00:57]}  Ke5 {[%clk 0:01:18]} 35. b4 {[%clk 0:00:53]}  Bb5 {[%clk 0:01:13]} 36. Bh3 {[%clk 0:00:46]}  Bc4 {[%clk 0:01:10]} 37. a3 {[%clk 0:00:41]}  b6 {[%clk 0:01:09]} 38. Bc8 {[%clk 0:00:39]}  Bb3 {[%clk 0:01:04]} 39. h4 {[%clk 0:00:34]}  Ba4 {[%clk 0:01:03]} 40. Bg4 {[%clk 0:00:33]}  h6 {[%clk 0:01:00]} 41. Bc8 {[%clk 0:00:27]}  Bb5 {[%clk 0:00:50]} 42. Bg4 {[%clk 0:00:20]}  Ba4 {[%clk 0:00:44]} 43. Bc8 {[%clk 0:00:20]}  Bc2 {[%clk 0:00:45]} 44. Bg4 {[%clk 0:00:20]}  Bf5 {[%clk 0:00:41]} 45. Bf3 {[%clk 0:00:20]}  Be6 {[%clk 0:00:35]} 46. Be2 {[%clk 0:00:17]}  Bd7 {[%clk 0:00:34]} 47. Bf3 {[%clk 0:00:17]}  g5 {[%clk 0:00:35]} 48. hxg5 {[%clk 0:00:16]}  hxg5 {[%clk 0:00:35]} 49. Bh5 {[%clk 0:00:15]}  Be6 {[%clk 0:00:29]} 50. Bg6 {[%clk 0:00:15]}  Bc8 {[%clk 0:00:27]} 51. Bh7 {[%clk 0:00:14]}  Bf5 {[%clk 0:00:15]} 52. Bg8 {[%clk 0:00:14]}  Be4 {[%clk 0:00:14]} 53. Bf7 {[%clk 0:00:11]}  Kf5 {[%clk 0:00:13]} 54. Bh5 {[%clk 0:00:10]}  Bg2 {[%clk 0:00:10]} 55. Kd4 {[%clk 0:00:08]}  Bh1 {[%clk 0:00:09]} 56. Be2 {[%clk 0:00:06]}  Be4 {[%clk 0:00:08]} 57. Bh5 {[%clk 0:00:06]}  Bg2 {[%clk 0:00:08]} 58. Be2 {[%clk 0:00:06]}  g4 {[%clk 0:00:06]} 59. Bb5 {[%clk 0:00:04]}  Bf3 {[%clk 0:00:05]} 60. Bc6 {[%clk 0:00:04]}  Ke6 {[%clk 0:00:05]} 61. Bb7 {[%clk 0:00:04]}  Kd6 {[%clk 0:00:06]} 62. Bc8 {[%clk 0:00:04]}  Be4 {[%clk 0:00:06]} 63. Bb7 {[%clk 0:00:02]}  Bf3 {[%clk 0:00:06]} 64. Bc8 {[%clk 0:00:03]}  a5 {[%clk 0:00:06]} 65. Bb7 {[%clk 0:00:03]}  axb4 {[%clk 0:00:05]} 66. axb4 {[%clk 0:00:03]}  Bg2 {[%clk 0:00:06]} 67. Bc8 {[%clk 0:00:02]}  Bf3 {[%clk 0:00:06]} 68. Bb7 {[%clk 0:00:02]}  Be4 {[%clk 0:00:05]} 69. Bc8 {[%clk 0:00:03]}  Bg2 {[%clk 0:00:05]} 70. Bb7 {[%clk 0:00:03]}  Bf3 {[%clk 0:00:05]} 71. Bc8 {[%clk 0:00:03]}  Be4 {[%clk 0:00:06]} 72. Bb7 {[%clk 0:00:03]}  Bf3 {[%clk 0:00:06]} 73. Bc8 {[%clk 0:00:04]}  Be4 {[%clk 0:00:06]} 74. Bb7 {[%clk 0:00:04]}  Bf3 {[%clk 0:00:07]} 1/2-1/2


[Site "https://www.chess.com"]